Cogmind - Beta 14 @@@ ROGUE MODE // 2024.12.13 @ 00:00:33 Player: 5taquitos Result: Destroyed by G-47 Trooper with Particle Gun Performance ------------- Evolutions (2) 1000 Regions Visited (5) 1000 Robots Destroyed (34) 170 Value Destroyed (892) 892 Prototype IDs (23) 460 Alien Tech Used (0) 0 Bonus (397) 397 TOTAL SCORE: 3919 Bonus ------- High Alert Combat Kills 97 Aligned with FarCom 300 Cogmind --------- Core Integrity 0/550 Matter 176/300 Energy 0/100 System Corruption 28% Temperature Cool (9) Movement Core (200) Ox3 Location -8/Materials Parts ------- > --- POWER (2) -------- (None) > --- PROPULSION (4) --- (None) > --- UTILITY (3) ------ Medium Storage Unit ECM Suite > --- WEAPON (2) ------- (None) > --- INVENTORY (10) --- Wheel High-capacity Storage Unit Recalibrator EM Pulse Gun Medium Laser Latent Energy Streamer Beam Cannon Heavy Particle Cannon Heavy Ion Cannon Light Assault Rifle Peak State ------------ > --- POWER ------------ Improved Ion Engine Light Nuclear Core > --- PROPULSION ------- Aluminum Leg Aluminum Leg Improved Aluminum Leg Titanium Leg > --- UTILITY ---------- Heat Sink Medium Storage Unit ECM Suite > --- WEAPON ----------- Latent Energy Streamer Beam Cannon > --- INVENTORY -------- Wheel High-capacity Storage Unit Recalibrator EM Pulse Gun Medium Laser Beam Cannon Heavy Particle Cannon Heavy Ion Cannon Light Assault Rifle Flak Gun [Rating: 28] Favorites ----------- Power Light Ion Engine Engine Light Ion Engine Power Core Light Nuclear Core Propulsion Aluminum Leg Treads Light Treads Leg Aluminum Leg Utility Medium Storage Unit Device Heat Sink Storage Medium Storage Unit Weapon Beam Cannon Energy Gun Medium Laser Energy Cannon Beam Cannon Ballistic Gun Flak Gun Ballistic Cannon Advanced Assault Cannon Build | -11 -10 -10 -10 -9 -8 ------- Run | Yrd Mat Min Exi Min Mat Slots Evolved 4 | . . . . . 4 Power 1 | . . . . . 1 Propulsion 2 | . . . . . 2 Utility 1 | . . . . . 1 Weapon . | . . . . . . Parts Attached 34 | 6 14 . 3 . 11 Power 8 | 1 4 . . . 3 Engine 7 | 1 4 . . . 2 Core 1 | . . . . . 1 Reactor . | . . . . . . Propulsion 10 | 2 4 . . . 4 Treads 2 | 2 . . . . . Leg 8 | . 4 . . . 4 Wheel . | . . . . . . Hover . | . . . . . . Flight . | . . . . . . Utility 8 | 1 4 . 2 . 1 Device 3 | . 2 . . . 1 Storage 5 | 1 2 . 2 . . Processor . | . . . . . . Hackware . | . . . . . . Protection . | . . . . . . Artifact . | . . . . . . Weapon 8 | 2 2 . 1 . 3 Energy Gun 2 | 2 . . . . . Energy Cannon 3 | . 2 . 1 . . Ballistic Gun 2 | . . . . . 2 Ballistic Cannon 1 | . . . . . 1 Launcher . | . . . . . . Special Weapon . | . . . . . . Impact Weapon . | . . . . . . Slashing Weapon . | . . . . . . Piercing Weapon . | . . . . . . Special Melee Weapon . | . . . . . . Unidentified Prototypes . | . . . . . . Parts Lost 10 | . 1 . . . 9 Power 3 | . 1 . . . 2 Propulsion 3 | . . . . . 3 Utility 1 | . . . . . 1 Weapon 3 | . . . . . 3 Highest Loss Streak 6 | . 1 . . . 6 To Critical Strikes . | . . . . . . Average Slot Usage (%) 96 | . 99 100 100 100 82 Engine 13 | . 14 14 14 14 10 Treads 1 | . 10 . . . . Leg 26 | . 17 28 28 28 27 Device 13 | . 8 14 14 14 16 Storage 13 | . 18 14 14 14 9 Energy Gun 8 | . 19 14 12 . . Energy Cannon 16 | . 8 14 15 28 12 Peak Build Rating 28 | 6 8 8 17 17 28 Average Rating 12 | 4 7 8 9 17 20 On Entrance 9 | . 6 8 8 17 17 Naked Turns . | . . . . . . Heaviest Build 49 | 12 22 19 49 27 38 Greatest Support 50 | 40 40 20 20 20 50 Greatest Overweight (x) 2 | . 1 . 2 1 1 Average Overweight (x) . | . . . . 1 . Largest Inventory Capacity 20 | 8 10 10 20 10 10 Average Capacity 9 | 7 9 10 10 10 10 Most Carried 10 | 4 10 10 10 10 10 Average Carried 9 | 2 6 10 9 10 9 Final Capacity 10 | 8 10 10 10 10 10 Final Carried 10 | 4 10 10 10 10 10 Class Distribution -------------------- 100% | Mutant Dominant Class ---------------- Mutant | -10/Materials Mutant | -10/Mines Mutant | -10/Exiles Mutant | -9/Mines Mutant | -8/Materials Resources | -11 -10 -10 -10 -9 -8 ----------- Run | Yrd Mat Min Exi Min Mat Matter Collected 600 | 246 170 41 . 30 113 Remotely . | . . . . . . Salvage Created 1008 | . 152 . . . 856 Parts 56 | . 10 . . . 46 Haulers Intercepted 1 | . . . . . 1 Recyclers Shooed . | . . . . . . Parts Field Recycled . | . . . . . . Retrieved Matter . | . . . . . . Parts Self-Destructed . | . . . . . . Prevented . | . . . . . . Kills | -11 -10 -10 -10 -9 -8 ------- Run | Yrd Mat Min Exi Min Mat Combat Hostiles Destroyed 25 | . 7 . . . 18 Guns 9 | . 6 . . . 3 Cannons 3 | . . . . . 3 AOE 10 | . . . . . 10 Classes Destroyed 8 | . 2 . . . 6 Worker 5 | . . . . . 5 Tunneler 1 | . . . . . 1 Hauler 1 | . . . . . 1 Operator 1 | . . . . . 1 Watcher 1 | . . . . . 1 Swarmer 12 | . 5 . . . 7 Grunt 11 | . 2 . . . 9 Sentry 2 | . . . . . 2 Best Kill Streak 8 | . 4 . . . 8 Combat Bots Only 4 | . 4 . . . 4 Max Kills in Single Turn 7 | . 1 . . . 7 Gunslinging . | . . . . . . Exploded 4 | . . . . . 4 Melee . | . . . . . . Uniques/NPCs Destroyed . | . . . . . . Combat | -11 -10 -10 -10 -9 -8 -------- Run | Yrd Mat Min Exi Min Mat Hostile Shots Fired 238 | . 79 . . . 159 Missed 80 | . 24 . . . 56 Damage Taken 2465 | . 571 . . . 1894 Core 675 | . 116 . . . 559 Absorbed by Shields . | . . . . . . Core Remaining (%) 76 | 100 . . . 53 . Volleys Fired 51 | . 24 . 1 . 26 Largest 2 | . 2 . 2 . 2 Hottest 120 | . 110 . 110 . 120 Shots Fired 101 | . 48 . 2 . 51 Gun 56 | . 39 . 1 . 16 Cannon 45 | . 9 . 1 . 35 Launcher . | . . . . . . Special . | . . . . . . Kinetic 27 | . . . . . 27 Thermal 62 | . 48 . 2 . 12 Explosive . | . . . . . . Electromagnetic 12 | . . . . . 12 Robot Hit Streak 9 | . 9 . . . 8 Robot Miss Streak 5 | . 3 . . . 5 Penetration Max . | . . . . . . Secondary Targets 2 | . 2 . . . . Max Gunslinging Chain 1 | . 1 . . . . Shots Hit Robots 60 | . 27 . . . 33 Core Hits 60 | . 8 . . . 52 Critical Kills 1 | . 1 . . . . Critical Parts Destroyed . | . . . . . . Critical Strikes 2 | . 1 . . . 1 Meltdown 1 | . 1 . . . . Blast 1 | . . . . . 1 Melee Attacks . | . . . . . . Impact . | . . . . . . Slashing . | . . . . . . Piercing . | . . . . . . Sneak Attacks . | . . . . . . Combat Hostiles . | . . . . . . Follow-up Attacks . | . . . . . . Damage Inflicted 3347 | . 364 . . . 2983 Guns 570 | . 312 . . . 258 Cannons 364 | . 52 . . . 312 Explosions 2413 | . . . . . 2413 Melee . | . . . . . . Ramming . | . . . . . . Kinetic 422 | . . . . . 422 Thermal 587 | . 364 . . . 223 Explosive . | . . . . . . Electromagnetic 2338 | . . . . . 2338 Impact . | . . . . . . Slashing . | . . . . . . Piercing . | . . . . . . Highest Corruption 28 | . . . . . 28 Average Corruption 16 | . . . . . 16 Corruption Purged . | . . . . . . Corruption Blocked . | . . . . . . Effects 21 | . . . . . 21 Message Errors 5 | . . . . . 5 Matter Fused 5 | . . . . . 5 Heat Flow Errors 1 | . . . . . 1 Parts Rejected 1 | . . . . . 1 Data Loss (minor) 6 | . . . . . 6 Misfires 1 | . . . . . 1 Misdirections 1 | . . . . . 1 Weapon Failures 1 | . . . . . 1 Overload Shots . | . . . . . . Overflow Damage 36 | . . . . . 36 Projectiles . | . . . . . . Explosions 36 | . . . . . 36 Melee . | . . . . . . Knockbacks 1 | . . . . . 1 Impact . | . . . . . . Kinetic 1 | . . . . . 1 Secondary . | . . . . . . Self-Inflicted Damage 310 | . . . . . 310 Shots 6 | . . . . . 6 Rammed . | . . . . . . Targets Rammed 1 | . . . . . 1 Kicked 1 | . . . . . 1 Crushed . | . . . . . . Highest Temperature 544 | . 544 . 18 . 132 Average Temperature 145 | . 217 . 12 . 38 Received Heat Transfer 1110 | . 192 . . . 918 Effects 11 | . 11 . . . . Shutdowns 3 | . 3 . . . . Energy Bleed 2 | . 2 . . . . Matter Decay 2 | . 2 . . . . Short Circuit 1 | . 1 . . . . Damage (minor) 3 | . 3 . . . . Siege Activations . | . . . . . . Robots Corrupted 2 | . . . . . 2 Combat Hostiles 2 | . . . . . 2 Parts Fried 6 | . . . . . 6 Impact Corruptions . | . . . . . . Robots Melted 1 | . 1 . . . . Combat Hostiles 1 | . 1 . . . . Parts Melted 2 | . 2 . . . . Heat Transferred 1371 | . 1036 . . . 335 Parts Sabotaged . | . . . . . . Parts Stolen . | . . . . . . Parts Stripped . | . . . . . . Power Chain Reactions . | . . . . . . Latent Energy Used 1520 | . . . . . 1520 LE Corruption 26 | . . . . . 26 Alert | -11 -10 -10 -10 -9 -8 ------- Run | Yrd Mat Min Exi Min Mat Peak Influence 678 | . 191 . . . 678 Initial . | . . . . . . Average 140 | . 107 . . . 321 Maximum Alert Level 2 | . . . . . 2 Low Security (%) 76 | 100 100 100 . 100 36 Level 1 5 | . . . . . 15 Level 2 17 | . . . . . 47 Level 3 . | . . . . . . Level 4 . | . . . . . . Level 5 . | . . . . . . High Security . | . . . . . . Max Security . | . . . . . . Squads Dispatched 3 | . . . . . 3 Investigation 2 | . . . . . 2 Extermination . | . . . . . . Reinforcement 1 | . . . . . 1 Assault . | . . . . . . Garrison . | . . . . . . Intercept . | . . . . . . Searches Triggered . | . . . . . . Construction Impeded . | . . . . . . Haulers Reinforced . | . . . . . . Active Scanning Responses . | . . . . . . Cargo Convoy Interrupts . | . . . . . . Stealth | -11 -10 -10 -10 -9 -8 --------- Run | Yrd Mat Min Exi Min Mat Distress Signals 3 | . . . . . 3 Communications Jammed . | . . . . . . Distress Signals . | . . . . . . Times Spotted 50 | . 10 . . . 40 Peak Tracking Total 9 | . 5 . . . 9 Tactical Retreats 8 | . . . . . 8 Traps | -11 -10 -10 -10 -9 -8 ------- Run | Yrd Mat Min Exi Min Mat Traps Triggered 2 | . . . . . 2 Indirectly . | . . . . . . Trap Hack Attempts . | . . . . . . Triggered . | . . . . . . Disarmed . | . . . . . . Reprogrammed . | . . . . . . Reused . | . . . . . . Traps Extracted . | . . . . . . Installed . | . . . . . . Triggered . | . . . . . . Machines | -11 -10 -10 -10 -9 -8 ---------- Run | Yrd Mat Min Exi Min Mat Machines Disabled 12 | . 1 . . . 11 Max in Single Turn 2 | . 1 . . . 2 Machines Repaired . | . . . . . . Machines Dismantled . | . . . . . . Machines Sabotaged . | . . . . . . Overloaded Fab Kills . | . . . . . . Hacking | -11 -10 -10 -10 -9 -8 --------- Run | Yrd Mat Min Exi Min Mat Machines Accessed 10 | . 3 . 5 . 2 Terminals 4 | . 2 . . . 2 Fabricators . | . . . . . . Repair Stations . | . . . . . . Recycling Units 1 | . 1 . . . . Scanalyzers . | . . . . . . Garrison Access . | . . . . . . Total Hacks 64 | . 10 . 50 . 4 Successful 60 | . 7 . 50 . 3 Failed 4 | . 3 . . . 1 Catastrophic 2 | . 2 . . . . Database Lockouts . | . . . . . . Manual 4 | . . . 4 . . Terminals 10 | . 6 . . . 4 Fabricators . | . . . . . . Repair Stations . | . . . . . . Recycling Units 4 | . 4 . . . . Scanalyzers . | . . . . . . Garrison Access . | . . . . . . Terminal Hacks 56 | . 3 . 50 . 3 Record 50 | . 1 . 49 . . Emergency Access Points 1 | . . . . . 1 Alert Level 1 | . 1 . . . . Unreport Threat 1 | . . . . . 1 Dispatch Records 1 | . . . . . 1 Hauler Manifests 1 | . 1 . . . . Derelict Proto ID Bank 1 | . . . 1 . . Fabricator Hacks . | . . . . . . Repair Station Hacks . | . . . . . . Recycling Unit Hacks 4 | . 4 . . . . Recycle Component 2 | . 2 . . . . Process 1 | . 1 . . . . Retrieve Matter 1 | . 1 . . . . Scanalyzer . | . . . . . . Garrison Access Hacks . | . . . . . . Unauthorized Hacks . | . . . . . . Terminals . | . . . . . . Fabricators . | . . . . . . Repair Stations . | . . . . . . Recycling Units . | . . . . . . Scanalyzers . | . . . . . . Garrison Access . | . . . . . . Data Cores Recovered . | . . . . . . Used . | . . . . . . Hacking Detections 3 | . 2 . . . 1 Full Trace Events . | . . . . . . Feedback Events . | . . . . . . Feedback Blocked . | . . . . . . Robot Schematics Acquired . | . . . . . . Robots Built . | . . . . . . Authchips . | . . . . . . Time . | . . . . . . Total Robot Build Rating . | . . . . . . Part Schematics Acquired . | . . . . . . Parts Built . | . . . . . . Authchips . | . . . . . . Time . | . . . . . . Total Part Build Rating . | . . . . . . Parts Repaired . | . . . . . . Time . | . . . . . . Parts Recycled 2 | . 2 . . . . Recycled Matter 75 | . 75 . . . . Retrieved Matter 75 | . 75 . . . . Retrieved Components . | . . . . . . Parts Scanalyzed . | . . . . . . Part Schematics Acquired . | . . . . . . Parts Damaged . | . . . . . . Bothacking | -11 -10 -10 -10 -9 -8 ------------ Run | Yrd Mat Min Exi Min Mat Used RIF Installer . | . . . . . . Robots Hacked . | . . . . . . Non-combat . | . . . . . . Combat . | . . . . . . Robot Hacks Applied . | . . . . . . Relay Couplers Released . | . . . . . . Fabnet Peak Effective % . | . . . . . . Robots Rewired . | . . . . . . Allies Hacked . | . . . . . . Hacks Repelled . | . . . . . . Allies | -11 -10 -10 -10 -9 -8 -------- Run | Yrd Mat Min Exi Min Mat Total Allies . | . . . . . . Largest Group . | . . . . . . Highest-Rated Group . | . . . . . . Highest-Rated Ally . | . . . . . . Total Orders . | . . . . . . Ally Attacks . | . . . . . . Total Damage . | . . . . . . Kills . | . . . . . . Allies Corrupted . | . . . . . . Allies Melted . | . . . . . . Intel | -11 -10 -10 -10 -9 -8 ------- Run | Yrd Mat Min Exi Min Mat Robot Analysis Total . | . . . . . . Derelict Logs Recovered 2 | . . 2 . . . Drone Launches . | . . . . . . Drone Recoveries . | . . . . . . Exploration | -11 -10 -10 -10 -9 -8 ------------- Run | Yrd Mat Min Exi Min Mat Turns Passed 3501 | 92 407 132 1647 549 674 Spaces Moved 2337 | 51 225 111 1301 286 363 Core 1 | 1 . . . . . Treads 108 | 50 58 . . . . Legs 2228 | . 167 111 1301 286 363 Wheels . | . . . . . . Hover . | . . . . . . Flight . | . . . . . . Fastest Speed 50 | 50 120 120 120 190 120 Average Speed 134 | 157 134 120 125 190 121 Slowest Speed 260 | 160 240 120 260 190 190 Overloaded Moves . | . . . . . . Propulsion Burnouts . | . . . . . . Robots Hopped . | . . . . . . Cave-ins Triggered . | . . . . . . Exploration Rate (%) 45 | 4 30 43 93 51 50 Regions Visited 5 Branch Regions 3 Pre-discovered Areas 1 | . . . 1 . . Known Exits Taken . | . . . . . . Unknown Exits Taken 5 | 1 1 1 1 1 . Scrap Searched 3 | . . 1 . 2 . Spaces Dug . | . . . . . . Terrain Destroyed 203 | . . . . . 203 Melee . | . . . . . . Projectile 5 | . . . . . 5 AOE 198 | . . . . . 198 Terrain Rammed . | . . . . . . Walls Destroyed . | . . . . . . Machines Disabled . | . . . . . . Actions | -11 -10 -10 -10 -9 -8 --------- Run | Yrd Mat Min Exi Min Mat Total 2593 | 60 277 110 1309 292 545 Wait 139 | . . . . 7 132 Move 2332 | 50 224 110 1300 285 363 Hop . | . . . . . . Pick Up 21 | 4 9 . 2 . 6 Fast Attach 8 | 6 1 . . . 1 Attach 5 | . 1 . . . 4 Detach . | . . . . . . Swap 21 | . 12 . 3 . 6 Drop 15 | . 6 . 3 . 6 Fire 51 | . 24 . 1 . 26 Melee . | . . . . . . Ram . | . . . . . . Kick 1 | . . . . . 1 Crush . | . . . . . . Escape Stasis . | . . . . . . Rewire . | . . . . . . Trap . | . . . . . . Miscellaneous . | . . . . . . Route ------- -11/Scrapyard -10/Materials -10/Mines (discovered 2 exits: [*Mat] / *Exi) -10/Exiles (discovered 2 exits: [*Min x2]) -9/Mines -8/Materials (discovered 1 exit: Sto) History --------- Turn | Location | Event 25 | -11/Scrapyard | Discovered new exit (range 16) 93 | -11/Scrapyard | Entered Materials 313 | -10/Materials | Build established: Mutant 428 | -10/Materials | Discovered new exit (range 15) 500 | -10/Materials | Entered Mines 566 | -10/Mines | Learned Materials terminal intel 584 | -10/Mines | Discovered new exit (range 16) 628 | -10/Mines | Deemed a non-threat by the Exiles lab entrance 628 | -10/Mines | Discovered new exit (range 5) 632 | -10/Mines | Entered Exiles 652 | -10/Exiles | Discovered new exit (range 15) 673 | -10/Exiles | Met 8R-AWN 695 | -10/Exiles | Met EX-HEX 755 | -10/Exiles | Met EX-DEC 787 | -10/Exiles | Learned location of Zion (-7) 830 | -10/Exiles | Discovered new exit (range 14) 937 | -10/Exiles | Met EX-BIN 1037 | -10/Exiles | Aligned with FarCom system 1039 | -10/Exiles | Given EX-Vault access code 1208 | -10/Exiles | Visited The Gauntlet 2042 | -10/Exiles | Opened EX-Vault 2049 | -10/Exiles | Found Latent Energy Streamer 2076 | -10/Exiles | Warned to stay clear of 0b10 Research branches 2103 | -10/Exiles | Exiles lab attacked by MAIN.C 2279 | -10/Exiles | Left Exiles lab with Latent Energy Streamer 2279 | -10/Exiles | Entered Mines 2414 | -9/Mines | Discovered new exit (range 8) 2828 | -9/Mines | Entered Materials 2828 | -8/Materials | Evolved 4 slots: Power x1, Propulsion x2, Utility x1 2829 | -8/Materials | Identified exit to Storage 2830 | -8/Materials | Loaded intel: 11 terminal locations 3074 | -8/Materials | System corruption reached 10% 3367 | -8/Materials | Lost 3 parts (2p1w) 3409 | -8/Materials | Core integrity fell below 50% 3452 | -8/Materials | Lost 6 parts (3n1u2w) 3469 | -8/Materials | Core integrity fell below 20% 3502 | -8/Materials | Destroyed by G-47 Trooper with Particle Gun Last Messages --------------- 03401_ G-47 Trooper misfires. 03404_ EIVO1W8GYY3BZ24, /%AWDKJOTLYC 03412_ G-47 Trooper destroyed. 03417_ G-47 Trooper misfires. 03420_ System corrupted: Component data lost. 03421_ Flak Gun destroyed. 03423_ Critical hit (Burn: +37). 03436_ G-47 Trooper misfires. 03446_ System corrupted: Component data lost. 03461_ System corrupted: Matter fused (-7). 03466_ G-47 Trooper misfires. 03482_ R-06 Scavenger collects Corrupted Carbon-fiber Leg. 03484_ R-06 Scavenger collects Imp. Heat Sink. 03486_ R-06 Scavenger collects Lgt. Nuclear Core. 03487_ R-06 Scavenger collects Hvy. Laser. 03490_ G-47 Trooper IFF system glitched. 03491_ R-06 Scavenger collects Imp. Heat Sink. 03493_ System corrupted: Component data lost. 03494_ R-06 Scavenger collects Particle Gun. Map ----- +----------------------------------------------------+ | ????????????????????????????????? | | ????????????????????????????????? | | ????????????????????????????????? | | ????????????????????????????????? | | ????????????????????????????????? | | ????????????????????????????????? | | ????????????????????????????????? | | ????????????????????????????????? | | ????????????????????????????????? | | ????????????????????????????????? | | ????????????????????????????????? | | ????????????????????????????????? | | ???????????????Y????????????????? | | ????????????????????????????????? | | ????????????????????????????????? | | ????????????????????????????????? | | ????????????????????????????????? | | ????????????????????????????????? | | ????????????????????????????????? | | ????????????????????????????????? | | ????????????????????????????????? | | ????????????????????????????????? | | ????????????????????????????????? | | ???????????????????????########?? | | ?????????##+##?????????#]]//!!#?? | | ##???????# +?????????#]@//!!#?? | | /??????? #?????????# #?? | | #???????# /?????????## %% #?? | | #???????# # ?????????#= ! #?? | | #???????# # #####% % #?? | | *#???????# #= / / * % #?? | | ######### #????####### * ;?? | | ""## # #??????????# g ##? | | ## # #??????????#;# ;#;?? | | """# # #??????????? # ####? | | # # ############## #???? | | " # #???? | | " / ################???? | | " # ## #????????? | | "###### ## #????????? | | " #??# # = #????????? | | "##### # ] #????????? | | " / #????????? | | "##### # #????????? | | """" " #[ = /#????????? | | #"""""""" ## = #????????? | | # " ## ! ########## | | # " ## ###/### # | | # %! ### #?# ] """# | | # " ## ### """# | +----------------------------------------------------+ Best States ------------- Heat Dissipation 41 Energy Generation 21 Energy Capacity 415 Matter Stores 300 Matter Capacity 300 Sight Range 16 Terrain Scan Density 10 ECM Strength 1 Evasion (%) 55 Recoil Reduction 2 Item Schematics ----------------- None Robot Schematics ------------------ None Fabricated ------------ Nothing Alien Tech Used ----------------- None Achievements -------------- None Challenges ------------ None Game ------ Seed PotentialHypervelocityBox Manual? 0 Play Time 00:57:52 Cumulative 17.6 hours Start 2024.12.12 @ 22:51:57 End 2024.12.13 @ 00:00:33 Sessions 1 Manual Loads 0 Difficulty Rogue Special Mode None Game No. 24 Rogue 24 Adventurer 0 Explorer 0 Win Type - Total 0 Types 0/0/0/0/0/0/0/0/0 Lore% 12 Gallery% 20 Achievement% 22 Wizard Run 0 Options --------- Layout 1 ASCII 0 Keyboard 0 Movement Mouse Keybinds 0 Fullscreen 1 Font 16/SmallcapsGlow Map View 55x38 Zoom Use 0% Tactical HUD 1 Map Filters NONE Filters NONE Steam 1 RUN: 58144625-c74c-44e8-a480-8c1cbc14a179